fUST/lending_fUST_20240419
["ID","MTS","AMOUNT","RATE_DAILY","PERIOD"]
[322924140,1713516642985,-500.0,0.00020755,2]
[322924141,1713516642994,-419.37811169,0.00020755,2]
[322924142,1713516643003,-478.17562767,0.00020755,2]
[322924143,1713516643014,-300.0,0.00020756,2]
[322924144,1713516643024,-11848.1150984,0.00020756,2]
[322924145,1713516643066,-3237.91385811,0.00020756,2]
[322924156,1713516645986,-466.16787958,0.00020756,2]
[322924160,1713516832791,12145.94212003,0.0002,2]
[322924167,1713517003504,10778.767385,0.00019641,2]
[322924168,1713517057018,171.414693,0.00019626,2]
[322924191,1713517634512,24900.0,0.00019596,2]
[322924193,1713517655964,171.414693,0.00019674,2]
[322924194,1713517665898,19537.0,0.000261,89]
[322924229,1713517832025,-361.8150045,0.00020306,2]
[322924230,1713517832048,-521.27721708,0.00020306,2]
[322924231,1713517832059,-205.90960079,0.00020307,2]
[322924232,1713517832068,-300.0,0.00020307,2]
[322924233,1713517832077,-211.91364755,0.00020308,2]
[322924234,1713517832087,-469.26939572,0.00020308,2]
[322924235,1713517832097,-166.6729706,0.00020309,2]
[322924236,1713517832107,-1279.7625135,0.00020397,2]
[322924284,1713517838135,-596.90500545,0.00020397,2]
[322924285,1713517838145,-1489.22314453,0.00020398,2]
[322924286,1713517838155,-166.67297056,0.00020399,2]
[322924287,1713517838165,-300.0,0.00020407,2]
[322924288,1713517838175,-300.0,0.00020407,2]
[322924289,1713517838185,-776.40480682,0.00020419,2]
[322924291,1713517838194,-166.67297056,0.00020488,2]
[322924292,1713517838203,-422.380868,0.00020531,2]
[322924293,1713517838214,-158.24540612,0.00020537,2]
[322924294,1713517838223,-158.24540609,0.0002057,2]
[322924295,1713517838232,-166.67297056,0.00020578,2]
[322924296,1713517838241,-158.24540609,0.00020602,2]
[322924297,1713517838250,-158.24540609,0.00020635,2]
[322924299,1713517838259,-1759.41266161,0.00020636,2]
[322924314,1713517840952,-22478.45259674,0.00020636,2]
[322924315,1713517840964,-24785.85983423,0.00020636,2]
[322924346,1713517846532,-308.60140542,0.00020635,2]
[322924347,1713517846541,-211.83113783,0.00020635,2]
[322924348,1713517846550,-1741.11495648,0.00020636,2]
[322924352,1713517853299,1192.1767146,0.00019693,2]
[322924366,1713518124659,24900.0,0.00019592,2]
[322924368,1713518246379,443.6,0.00027699,120]
[322924370,1713518319830,10388.936,0.00027422,120]
[322924371,1713518319857,10388.937,0.00027422,120]
[322924372,1713518319902,10388.937,0.00027422,120]
[322924373,1713518320010,10388.937,0.00027422,120]
[322924374,1713518320038,10388.937,0.00027422,120]
[322924376,1713518582044,24900.0,0.00019463,2]
[322924462,1713519040326,-300.0,0.00020192,2]
[322924463,1713519040335,-347.496,0.00020193,2]
[322924464,1713519040348,-172.02081553,0.00020193,2]
[322924465,1713519040357,-883.09222158,0.00020194,2]
[322924466,1713519040366,-519.51681553,0.00020195,2]
[322924467,1713519040374,-166.67297056,0.00020204,2]
[322924468,1713519040383,-412.02354268,0.00020327,2]
[322924469,1713519040392,-158.24540609,0.00020327,2]
[322924470,1713519040403,-300.0,0.00020426,2]
[322924471,1713519040412,-300.0,0.00020426,2]
[322924472,1713519040421,-36030.60083447,0.00020427,2]
[322924473,1713519040435,-11469.15446346,0.00020427,2]
[322924474,1713519040446,-25010.66199174,0.00020427,2]
[322924475,1713519040456,-419.21812615,0.00020427,2]
[322924476,1713519040466,-394.01919072,0.00020427,2]
[322924477,1713519040475,-500.0,0.00020428,3]
[322924478,1713519040484,-500.0,0.00020428,3]
[322924479,1713519040494,-500.0,0.00020428,3]
[322924480,1713519040503,-500.0,0.00020428,3]
[322924481,1713519040512,-500.0,0.00020428,3]
[322924482,1713519040521,-500.0,0.00020428,3]
[322924483,1713519040531,-500.0,0.00020428,3]
[322924484,1713519040539,-500.0,0.00020428,3]
[322924485,1713519040548,-493.43862535,0.00020428,3]
[322924486,1713519040559,-6.56137465,0.00020428,3]
[322924487,1713519040568,-500.0,0.00020428,3]
[322924488,1713519040577,-500.0,0.00020428,3]
[322924489,1713519040586,-500.0,0.00020428,3]
[322924490,1713519040595,-500.0,0.00020428,3]
[322924491,1713519040605,-500.0,0.00020428,3]
[322924492,1713519040615,-500.0,0.00020428,3]
[322924493,1713519040624,-500.0,0.00020428,3]
[322924494,1713519040633,-500.0,0.00020428,3]
[322924495,1713519040642,-500.0,0.00020428,3]
[322924496,1713519040653,-252.95290385,0.00020428,3]
[322924497,1713519040662,-12029.29347316,0.00020428,2]
[322924498,1713519040670,-9768.01113341,0.00020566,2]
[322924499,1713519040679,-5797.00010816,0.00020638,2]
[322924500,1713519040688,-154.87609912,0.00020638,2]
[322924501,1713519040697,-151.0,0.00020638,2]
[322924502,1713519040706,-216.678596,0.00020638,2]
[322924503,1713519040715,-207.273835,0.00020638,2]
[322924504,1713519040724,-207.273835,0.00020638,2]
[322924505,1713519040733,-562.036276,0.00020638,2]
[322924506,1713519040743,-562.036276,0.00020638,2]
[322924507,1713519040752,-198.720789,0.00020638,2]
[322924508,1713519040761,-1514.705612,0.00020638,2]
[322924509,1713519040770,-1514.705612,0.00020638,2]
[322924510,1713519040780,-171.794974,0.00020638,2]
[322924511,1713519040789,-171.794974,0.00020638,2]
[322924512,1713519040798,-151.0,0.00020638,2]
[322924513,1713519040808,-151.0,0.00020638,2]
[322924514,1713519040817,-151.0,0.00020638,2]
[322924515,1713519040827,-282.181053,0.00020638,2]
[322924516,1713519040836,-282.181053,0.00020638,2]
[322924517,1713519040845,-193.045976,0.00020638,2]
[322924518,1713519040855,-151.0,0.00020665,2]
[322924519,1713519040864,-151.0,0.00020665,2]
[322924520,1713519040874,-207.273835,0.00020665,2]
[322924521,1713519040884,-207.273835,0.00020665,2]
[322924522,1713519040893,-562.036276,0.00020665,2]
[322924523,1713519040903,-562.036276,0.00020665,2]
[322924524,1713519040912,-177.342257,0.00020665,2]
[322924525,1713519040922,-234.008782,0.00020665,2]
[322924526,1713519040932,-234.008782,0.00020665,2]
[322924527,1713519040941,-1514.705612,0.00020665,2]
[322924529,1713519040951,-1514.705612,0.00020665,2]
[322924530,1713519040960,-171.794974,0.00020665,2]
[322924531,1713519040970,-171.794974,0.00020665,2]
[322924532,1713519040980,-294.42398,0.00020665,2]
[322924533,1713519040990,-151.0,0.00020665,2]
[322924534,1713519040999,-151.0,0.00020665,2]
[322924535,1713519041009,-282.181053,0.00020665,2]
[322924536,1713519041018,-282.181053,0.00020665,2]
[322924537,1713519041028,-1223.16,0.00020665,2]
[322924538,1713519041038,-785.36758215,0.00020665,2]
[322924539,1713519041047,-1934.55003292,0.00020665,2]
[322924540,1713519041057,-469.12528489,0.00020666,2]
[322924541,1713519041068,-151.0,0.00020667,2]
[322924542,1713519041077,-207.273835,0.00020667,2]
[322924543,1713519041088,-207.273835,0.00020667,2]
[322924544,1713519041097,-562.036276,0.00020667,2]
[322924545,1713519041107,-562.036276,0.00020667,2]
[322924547,1713519041123,-234.008782,0.00020667,2]
[322924548,1713519041133,-234.008782,0.00020667,2]
[322924549,1713519041143,-1514.705612,0.00020667,2]
[322924550,1713519041152,-1514.705612,0.00020667,2]
[322924551,1713519041161,-171.794974,0.00020667,2]
[322924552,1713519041171,-171.794974,0.00020667,2]
[322924553,1713519041180,-151.0,0.00020667,2]
[322924554,1713519041190,-151.0,0.00020667,2]
[322924555,1713519041199,-24153.63852002,0.0002075,2]
[322924556,1713519041211,-151.0,0.0002075,2]
[322924557,1713519041220,-207.273835,0.0002075,2]
[322924558,1713519041229,-207.273835,0.0002075,2]
[322924559,1713519041238,-562.036276,0.0002075,2]
[322924560,1713519041246,-562.036276,0.0002075,2]
[322924561,1713519041256,-234.008782,0.0002075,2]
[322924562,1713519041265,-234.008782,0.0002075,2]
[322924563,1713519041274,-1514.705612,0.0002075,2]
[322924564,1713519041284,-1514.705612,0.0002075,2]
[322924565,1713519041293,-171.794974,0.0002075,2]
[322924566,1713519041302,-171.794974,0.0002075,2]
[322924567,1713519041311,-151.0,0.0002075,2]
[322924568,1713519041321,-151.0,0.0002075,2]
[322924569,1713519041330,-282.181053,0.0002075,2]
[322924570,1713519041339,-282.181053,0.0002075,2]
[322924571,1713519041348,-888.43676539,0.00020754,2]
[322924572,1713519041357,-1575.3401522,0.00020755,2]
[322924573,1713519041366,-151.0,0.00020755,2]
[322924574,1713519041521,-207.273835,0.00020755,2]
[322924575,1713519041531,-207.273835,0.00020755,2]
[322924576,1713519041540,-562.036276,0.00020755,2]
[322924577,1713519041549,-562.036276,0.00020755,2]
[322924578,1713519041559,-234.008782,0.00020755,2]
[322924579,1713519041568,-234.008782,0.00020755,2]
[322924580,1713519041577,-1514.705612,0.00020755,2]
[322924581,1713519041586,-1514.705612,0.00020755,2]
[322924582,1713519041595,-171.794974,0.00020755,2]
[322924583,1713519041604,-171.794974,0.00020755,2]
[322924584,1713519041613,-151.0,0.00020755,2]
[322924585,1713519041623,-151.0,0.00020755,2]
[322924586,1713519041632,-282.181053,0.00020755,2]
[322924587,1713519041641,-282.181053,0.00020755,2]
[322924588,1713519041651,-42499.71862195,0.00020767,2]
[322924589,1713519041661,-151.0,0.00020767,2]
[322924590,1713519041672,-207.273835,0.00020767,2]
[322924591,1713519041681,-207.273835,0.00020767,2]
[322924592,1713519041690,-562.036276,0.00020767,2]
[322924593,1713519041700,-562.036276,0.00020767,2]
[322924594,1713519041709,-234.008782,0.00020767,2]
[322924595,1713519041718,-234.008782,0.00020767,2]
[322924596,1713519041729,-1514.705612,0.00020767,2]
[322924597,1713519041738,-1514.705612,0.00020767,2]
[322924598,1713519041747,-171.794974,0.00020767,2]
[322924599,1713519041756,-171.794974,0.00020767,2]
[322924600,1713519041766,-151.0,0.00020767,2]
[322924601,1713519041774,-209.675102,0.00020767,2]
[322924602,1713519041783,-282.181053,0.00020767,2]
[322924603,1713519041793,-282.181053,0.00020767,2]
[322924604,1713519041802,-5328.16514486,0.00020772,2]
[322924605,1713519041811,-151.0,0.00020772,2]
[322924606,1713519041820,-207.273835,0.00020772,2]
[322924607,1713519041829,-207.273835,0.00020772,2]
[322924608,1713519041838,-562.036276,0.00020772,2]
[322924609,1713519041848,-562.036276,0.00020772,2]
[322924610,1713519041857,-234.008782,0.00020772,2]
[322924611,1713519041866,-234.008782,0.00020772,2]
[322924612,1713519041875,-1514.705612,0.00020772,2]
[322924613,1713519041885,-1514.705612,0.00020772,2]
[322924614,1713519041894,-171.794974,0.00020772,2]
[322924615,1713519041905,-171.794974,0.00020772,2]
[322924616,1713519041914,-151.0,0.00020772,2]
[322924617,1713519041922,-282.181053,0.00020772,2]
[322924618,1713519041934,-282.181053,0.00020772,2]
[322924619,1713519041943,-1000.0,0.000209,2]
[322924620,1713519041953,-153.0,0.00020956,2]
[322924621,1713519041963,-203.3901934,0.00020956,2]
[322924622,1713519041973,-203.3901934,0.00020956,2]
[322924623,1713519041982,-203.3901934,0.00020956,2]
[322924624,1713519041992,-157.63770947,0.00020983,2]
[322924625,1713519042001,-309.75219824,0.00020983,2]
[322924626,1713519042010,-329.39846217,0.00020983,2]
[322924627,1713519042020,-161.90783343,0.00020983,2]
[322924628,1713519042029,-361.75151942,0.00020983,2]
[322924629,1713519042039,-539.43970623,0.00020983,2]
[322924630,1713519042049,-154.8915759,0.00020983,2]
[322924631,1713519042058,-151.0,0.00020983,2]
[322924632,1713519042067,-207.273835,0.00020983,2]
[322924633,1713519042076,-207.273835,0.00020983,2]
[322924634,1713519042085,-562.036276,0.00020983,2]
[322924635,1713519042094,-562.036276,0.00020983,2]
[322924636,1713519042103,-234.008782,0.00020983,2]
[322924637,1713519042113,-234.008782,0.00020983,2]
[322924638,1713519042123,-1514.705612,0.00020983,2]
[322924639,1713519042133,-1514.705612,0.00020983,2]
[322924640,1713519042142,-171.794974,0.00020983,2]
[322924641,1713519042152,-171.794974,0.00020983,2]
[322924642,1713519042163,-151.0,0.00020983,2]
[322924643,1713519042173,-282.181053,0.00020983,2]
[322924644,1713519042182,-282.181053,0.00020983,2]
[322924645,1713519042192,-1089.26071762,0.00020986,2]
[322924646,1713519042202,-203.60696342,0.00020986,2]
[322924647,1713519042211,-2311.45498559,0.00020996,2]
[322924648,1713519042220,-965.39339888,0.00020998,2]
[322924649,1713519042229,-207.273835,0.00020998,2]
[322924650,1713519042238,-207.273835,0.00020998,2]
[322924651,1713519042247,-562.036276,0.00020998,2]
[322924652,1713519042256,-562.036276,0.00020998,2]
[322924653,1713519042265,-234.008782,0.00020998,2]
[322924654,1713519042274,-234.008782,0.00020998,2]
[322924655,1713519042283,-1514.705612,0.00020998,2]
[322924656,1713519042292,-1514.705612,0.00020998,2]
[322924657,1713519042301,-171.794974,0.00020998,2]
[322924658,1713519042310,-171.794974,0.00020998,2]
[322924659,1713519042319,-151.0,0.00020998,2]
[322924660,1713519042327,-282.181053,0.00020998,2]
[322924661,1713519042336,-282.181053,0.00020998,2]
[322924662,1713519042345,-246.93293796,0.00020999,2]
[322924663,1713519042354,-6176.81006609,0.00021,2]
[322924664,1713519042499,-824.74,0.00021,2]
[322924665,1713519042510,-309.87,0.00021,2]
[322924706,1713519541362,611.5660712,0.00019934,2]
[322924707,1713519576940,24900.0,0.00019638,2]
[322924718,1713520065102,1268.0251528,0.00019364,2]
[322924719,1713520093450,5543.7885377,0.00019318,2]
[322924720,1713520093889,23838.46959255,0.0002,2]
[322924722,1713520146662,221.23139293,0.00016235,2]
[322924779,1713520238590,-1674.52743334,0.00020282,2]
[322924780,1713520238600,-4405.99951717,0.00020282,2]
[322924781,1713520238609,-471.31782646,0.00020283,2]
[322924782,1713520238620,-300.0,0.00020283,2]
[322924783,1713520238629,-211.91364755,0.00020283,2]
[322924784,1713520238638,-300.0,0.00020284,2]
[322924785,1713520238647,-308.26347028,0.00020284,2]
[322924786,1713520238656,-521.10599486,0.00020285,2]
[322924787,1713520238666,-5797.00010816,0.00020285,2]
[322924788,1713520238675,-207.7309784,0.00020285,2]
[322924789,1713520238685,-154.90705577,0.00020286,2]
[322924790,1713520238694,-157.63770947,0.00020286,2]
[322924791,1713520238703,-900.28590474,0.00020289,2]
[322924792,1713520238713,-16378.66110065,0.0002029,2]
[322924820,1713520243736,-258.74248845,0.00020281,2]
[322924842,1713520246635,-2363.314452,0.00020281,2]
[322924843,1713520246645,-7136.685548,0.0002029,2]
[322924849,1713520566729,2870.79109639,0.000164,2]
[322924852,1713520737001,10000.0,0.00025,90]
[322924853,1713520747852,2800.82,0.00025,90]
[322924855,1713520866816,2621.14214872,0.000164,2]
[322924857,1713520941679,188.68634533,0.00020061,2]
[322924858,1713520958513,1000.0,0.0002006,2]
[322924860,1713520975687,10000.0,0.00025,30]
[322924861,1713520992559,2600.8,0.00025,30]
[322924866,1713521317760,169.76565253,0.00020019,2]
[322924907,1713521431908,-156.90851083,0.00020107,2]
[322924908,1713521431919,-154.8915759,0.00020108,2]
[322924909,1713521431933,-154.8915759,0.00020109,2]
[322924910,1713521431943,-207.7309784,0.00020109,2]
[322924911,1713521431953,-521.10599486,0.00020109,2]
[322924913,1713521431964,-471.31782646,0.0002011,2]
[322924915,1713521431975,-211.91364755,0.0002011,2]
[322924916,1713521431986,-784.09852565,0.0002011,2]
[322924917,1713521431996,-1000.0,0.00020167,2]
[322924918,1713521432006,-300.0,0.00020183,2]
[322924919,1713521432016,-300.0,0.00020183,2]
[322924920,1713521432027,-2622.05694045,0.00020184,2]
[322924921,1713521432037,-2205.17819754,0.00020186,2]
[322924922,1713521432047,-425.88327006,0.00020186,2]
[322924923,1713521432058,-1310.15475715,0.00020284,2]
[322924924,1713521432071,-467.87279548,0.00020284,2]
[322924925,1713521432081,-1488.61335239,0.00020284,2]
[322924926,1713521432091,-616.14081914,0.00020285,2]
[322924927,1713521432101,-12551.3839504,0.00020286,2]
[322924990,1713521440028,-300.0,0.00020106,2]
[322924992,1713521440038,-14101.97057309,0.00020286,2]
[322924996,1713521440067,-501.98208771,0.00020286,2]
[322925082,1713521445928,-44196.10510996,0.00020286,2]
[322925083,1713521445938,-164.57788955,0.00020286,2]
[322925084,1713521445948,-8430.81851115,0.00020287,2]
[322925086,1713521445957,-1000.0,0.00020287,2]
[322925088,1713521445967,-157.51511733,0.00020288,2]
[322925089,1713521445976,-3889.77107889,0.00020288,2]
[322925091,1713521445985,-1671.44665423,0.00020289,2]
[322925093,1713521445994,-4454.58692679,0.00020289,2]
[322925096,1713521446003,-271.05018556,0.00020289,2]
[322925099,1713521446012,-1000.0,0.00021,2]
[322925101,1713521446021,-155.05841957,0.0002101,2]
[322925103,1713521446030,-3062.64298016,0.0002101,2]
[322925105,1713521446039,-425.88327004,0.00021614,2]
[322925106,1713521446048,-1000.0,0.00022,2]
[322925107,1713521446057,-420.0,0.00022201,2]
[322925108,1713521446066,-493.0,0.000229,2]
[322925109,1713521446075,-964.70236843,0.00022911,2]
[322925110,1713521446084,-1502.0,0.00023,2]
[322925112,1713521446093,-1502.0,0.00023,2]
[322925114,1713521446102,-1502.0,0.00023,2]
[322925116,1713521446111,-1502.0,0.00023,2]
[322925117,1713521446120,-150.0,0.00023,2]
[322925118,1713521446129,-425.88327004,0.00023042,2]
[322925119,1713521446138,-169.76565252,0.0002346,2]
[322925120,1713521446147,-1000.0,0.000238,2]
[322925121,1713521446156,-1000.0,0.000238,3]
[322925122,1713521446165,-2000.0,0.000239,2]
[322925124,1713521446175,-417.0,0.00023958,2]
[322925126,1713521446184,-987.43053726,0.00023999,2]
[322925127,1713521446193,-2000.0,0.00024,2]
[322925128,1713521446202,-2000.0,0.00024,2]
[322925129,1713521446211,-2000.0,0.00024,2]
[322925131,1713521446372,-2000.0,0.00024,2]
[322925132,1713521446383,-1000.0,0.00024,24]
[322925133,1713521446393,-587.0,0.00024421,2]
[322925134,1713521446402,-425.88327004,0.0002447,2]
[322925135,1713521446411,-311.54679785,0.00024559,2]
[322925136,1713521446421,-12046.50294874,0.0002459,2]
[322925137,1713521446430,-300.0,0.00024611,2]
[322925138,1713521446439,-200.0,0.00024658,15]
[322925139,1713521446449,-1000.0,0.00024662,2]
[322925140,1713521446458,-960.04853159,0.00024696,2]
[322925141,1713521446468,-1000.0,0.00024721,2]
[322925142,1713521446477,-1000.0,0.00024758,2]
[322925143,1713521446486,-1000.0,0.00024759,2]
[322925144,1713521446496,-1000.0,0.00024765,2]
[322925145,1713521446505,-1000.0,0.00024781,2]
[322925146,1713521446514,-1000.0,0.00024829,2]
[322925147,1713521446523,-1000.0,0.00024852,2]
[322925148,1713521446542,-1000.0,0.00024861,2]
[322925149,1713521446553,-2000.0,0.000249,2]
[322925150,1713521446563,-1000.0,0.00024926,2]
[322925151,1713521446573,-488.52595806,0.00024929,2]
[322925152,1713521446585,-1000.0,0.00024949,2]
[322925153,1713521446594,-1000.0,0.00024968,2]
[322925154,1713521446604,-155.05694294,0.00024998,2]
[322925155,1713521446614,-205.90273997,0.00024999,2]
[322925156,1713521446623,-2000.0,0.00025,2]
[322925157,1713521446632,-2000.0,0.00025,2]
[322925158,1713521446642,-2000.0,0.00025,2]
[322925159,1713521446651,-2000.0,0.00025,2]
[322925160,1713521446660,-1000.0,0.00025,25]
[322925161,1713521446669,-173.042897,0.00025,2]
[322925162,1713521446678,-154.90705577,0.00025,2]
[322925163,1713521446687,-151.0,0.00025,2]
[322925164,1713521446697,-151.0,0.00025,2]
[322925165,1713521446706,-151.0,0.00025,2]
[322925166,1713521446715,-226.399155,0.00025,2]
[322925167,1713521446725,-226.399155,0.00025,2]
[322925168,1713521446734,-151.0,0.00025,2]
[322925169,1713521446743,-151.470561,0.00025,2]
[322925170,1713521446753,-151.470561,0.00025,2]
[322925171,1713521446762,-151.0,0.00025,2]
[322925172,1713521446771,-151.0,0.00025,2]
[322925173,1713521446781,-525.74547902,0.00025888,2]
[322925174,1713521446790,-937.89373734,0.00025888,2]
[322925175,1713521446799,-425.88327004,0.00025898,2]
[322925176,1713521446808,-2000.0,0.000259,2]
[322925177,1713521446818,-1089.26071762,0.00025995,2]
[322925178,1713521446827,-304.76580654,0.00025996,2]
[322925179,1713521446836,-597.852953,0.00025996,2]
[322925180,1713521446846,-154.99603486,0.00025996,2]
[322925181,1713521446854,-203.33763131,0.00025997,2]
[322925182,1713521446864,-250.18519589,0.00025997,2]
[322925183,1713521446873,-155.06222629,0.00025998,2]
[322925184,1713521446885,-189.92550626,0.00025998,2]
[322925185,1713521446894,-499.70124931,0.00025999,2]
[322925186,1713521446903,-2000.0,0.00026,2]
[322925187,1713521446912,-2000.0,0.00026,2]
[322925188,1713521446922,-2000.0,0.00026,2]
[322925189,1713521446930,-2000.0,0.00026,2]
[322925190,1713521446941,-1000.0,0.00026,26]
[322925191,1713521446951,-151.0,0.00026,2]
[322925192,1713521446960,-263.54767,0.00026,2]
[322925193,1713521446970,-226.399155,0.00026,2]
[322925194,1713521446980,-226.399155,0.00026,2]
[322925195,1713521446989,-151.470561,0.00026,2]
[322925196,1713521446998,-151.470561,0.00026,2]
[322925197,1713521447007,-151.0,0.00026,2]
[322925198,1713521447016,-192.589953,0.00026,2]
[322925199,1713521447026,-399.0,0.000263,2]
[322925200,1713521447035,-1355.35919879,0.000265,4]
[322925201,1713521447044,-823.0,0.00026864,2]
[322925202,1713521447053,-2000.0,0.000269,2]
[322925203,1713521447063,-169.76565252,0.000269,2]
[322925204,1713521447072,-417.0,0.00026958,2]
[322925205,1713521447083,-205.83283873,0.00026999,2]
[322925206,1713521447093,-151.0,0.00026999,2]
[322925207,1713521447101,-2000.0,0.00027,2]
[322925208,1713521447111,-2000.0,0.00027,2]
[322925209,1713521447119,-2000.0,0.00027,2]
[322925210,1713521447128,-2000.0,0.00027,2]
[322925211,1713521447137,-1249.18,0.00027,2]
[322925212,1713521447146,-8510.41889157,0.00027,2]
[322925213,1713521447156,-1000.0,0.00027,27]
[322925214,1713521447165,-177.0,0.00027,2]
[322925215,1713521447173,-151.0,0.00027,2]
[322925216,1713521447183,-226.399155,0.00027,2]
[322925217,1713521447192,-226.399155,0.00027,2]
[322925218,1713521447201,-151.470561,0.00027,2]
[322925219,1713521447210,-151.470561,0.00027,2]
[322925220,1713521447220,-151.0,0.00027,2]
[322925221,1713521447229,-300.0,0.000273,2]
[322925222,1713521447238,-267.1530303,0.00027396,2]
[322925223,1713521447248,-500.0,0.00027397,2]
[322925224,1713521447257,-500.0,0.00027397,2]
[322925225,1713521447266,-500.0,0.00027397,2]
[322925226,1713521447275,-500.0,0.00027397,2]
[322925227,1713521447284,-500.0,0.00027397,2]
[322925228,1713521447293,-500.0,0.00027397,2]
[322925229,1713521447302,-500.0,0.00027397,2]
[322925230,1713521447312,-500.0,0.00027397,2]
[322925231,1713521447321,-523.88048388,0.00027397,2]
[322925232,1713521447331,-500.0,0.00027397,2]
[322925233,1713521447341,-500.0,0.00027397,2]
[322925234,1713521447350,-226.399155,0.00027397,2]
[322925235,1713521447359,-226.399155,0.00027397,2]
[322925236,1713521447368,-151.470561,0.00027397,2]
[322925237,1713521447377,-151.470561,0.00027397,2]
[322925238,1713521447386,-151.0,0.00027397,2]
[322925239,1713521447396,-451.0,0.00027397,10]
[322925240,1713521447406,-166.72005,0.00027397,2]
[322925241,1713521447416,-699.460379,0.00027397,2]
[322925242,1713521447425,-166.666666,0.00027397,2]
[322925243,1713521447435,-163.788266,0.00027397,2]
[322925244,1713521447443,-1000.0,0.00027397,2]
[322925245,1713521447453,-755.80206996,0.00027422,2]
[322925246,1713521447462,-220.44087813,0.00027422,2]
[322925247,1713521447471,-6313.46251142,0.0002763,2]
[322925248,1713521447480,-2000.0,0.000279,2]
[322925249,1713521447489,-151.0,0.000279,2]
[322925250,1713521447498,-964.0,0.000279,2]
[322925251,1713521447508,-408.43488901,0.00027998,2]
[322925252,1713521447517,-2000.0,0.00028,2]
[322925253,1713521447526,-2000.0,0.00028,2]
[322925254,1713521447537,-2000.0,0.00028,2]
[322925255,1713521447548,-2000.0,0.00028,2]
[322925256,1713521447557,-400.0,0.00028,2]
[322925257,1713521447567,-1000.0,0.00028,28]
[322925258,1713521447578,-151.0,0.00028,2]
[322925259,1713521447588,-222.724219,0.00028,2]
[322925260,1713521447597,-226.399155,0.00028,2]
[322925261,1713521447607,-226.399155,0.00028,2]
[322925262,1713521447616,-226.399155,0.00028,2]
[322925263,1713521447625,-226.399155,0.00028,2]
[322925264,1713521447635,-226.399155,0.00028,2]
[322925265,1713521447645,-226.399155,0.00028,2]
[322925266,1713521447654,-151.470561,0.00028,2]
[322925267,1713521447663,-151.470561,0.00028,2]
[322925268,1713521447672,-151.470561,0.00028,2]
[322925269,1713521447681,-151.470561,0.00028,2]
[322925270,1713521447689,-151.0,0.00028,2]
[322925271,1713521447698,-181.035131,0.00028,2]
[322925272,1713521447707,-11920.64351716,0.00028,2]
[322925273,1713521447716,-109365.97469866,0.00028,12]
[322925274,1713521447725,-166.666666,0.00028038,2]
[322925275,1713521447734,-300.0,0.000283,2]
[322925276,1713521447743,-153.0,0.0002846,2]
[322925277,1713521447752,-153.0,0.0002846,2]
[322925278,1713521447761,-153.0,0.0002846,2]
[322925279,1713521447770,-166.666666,0.00028679,2]
[322925280,1713521447779,-300.0,0.000289,2]
[322925281,1713521447787,-300.0,0.000289,2]
[322925282,1713521447796,-2000.0,0.000289,2]
[322925283,1713521447805,-2000.0,0.00029,2]
[322925284,1713521447814,-2000.0,0.00029,2]
[322925285,1713521447823,-2000.0,0.00029,2]
[322925286,1713521447834,-2000.0,0.00029,2]
[322925287,1713521447843,-3570.479541,0.00029,2]
[322925288,1713521447852,-300.0,0.00029,2]
[322925289,1713521447861,-1000.0,0.00029,29]
[322925290,1713521447870,-151.59265114,0.00029299,2]
[322925291,1713521447881,-300.0,0.000293,2]
[322925292,1713521447892,-166.666666,0.00029321,2]
[322925293,1713521447901,-1152.0,0.0002955,2]